Cogmind - Beta 16.1 *** ADVENTURER MODE // 2026.04.17 @ 11:53:52 // Winter2019/RPGLIKE Player: Timeslice Result: Destroyed by B-86 Titan with Hardcell Cannon Performance ------------- Evolutions (7) 3500 Regions Visited (18) 3600 Robots Destroyed (214) 1070 Value Destroyed (9838) 9838 Prototype IDs (43) 860 Alien Tech Used (1) 200 Bonus (2323) 2323 TOTAL SCORE: 21391 Bonus ------- Follower Combat Kills 929 Entered DSFs 500 Met Data Miner 300 Met Imprinter 300 Was Imprinted 300 Friendly Fire -6 Cogmind --------- Core Integrity 0/850 Matter 300/300 Energy 625/625 System Corruption 0% Temperature Cool (-100) Movement Walking (111) Location -3/Research Parts ------- > --- POWER (3) -------- Neutrino Core Light Antimatter Reactor Heavy Antimatter Reactor > --- PROPULSION (5) --- Flexi-carbon Leg Flexi-carbon Leg Armored Leg Myomer Leg Improved Thunder Leg > --- UTILITY (9) ------ Scrap Suit Cryofiber Web Improved Cooling System Improved Signal Interpreter Improved Phase Shifter Hardlight Generator Dynamic Insulation System System Restoration Module > --- WEAPON (4) ------- Thermic Laser Long-range Phase Cannon Gauss Cannon Ripper > --- INVENTORY (6) ---- Protomatter-81 Protomatter-78 Protomatter-71 Advanced Terrain Scanner Advanced System Restoration Module Advanced Datajack Peak State ------------ > --- POWER ------------ Neutrino Core Light Antimatter Reactor Heavy Antimatter Reactor > --- PROPULSION ------- Flexi-carbon Leg Flexi-carbon Leg Armored Leg Myomer Leg Improved Thunder Leg > --- UTILITY ---------- Scrap Suit Cryofiber Web Improved Cooling System Improved Signal Interpreter Improved Phase Shifter Hardlight Generator Dynamic Insulation System System Restoration Module > --- WEAPON ----------- Thermic Laser Long-range Phase Cannon Gauss Cannon Advanced Datajack > --- INVENTORY -------- Protomatter Protomatter Protomatter Advanced Terrain Scanner Advanced System Restoration Module Ripper [Rating: 112] Favorites ----------- Power Light Fission Core Engine Heavy Ion Engine Power Core Light Fission Core Reactor Heavy Antimatter Reactor Propulsion Flexi-carbon Leg Leg Flexi-carbon Leg Utility Cryofiber Web Device Cryofiber Web Processor Improved Signal Interpreter Protection Light Armor Plating Weapon Ripper Energy Gun Thermic Laser Energy Cannon Long-range Phase Cannon Ballistic Cannon Gauss Cannon Launcher Grenade Launcher Special Weapon Mining Laser Slashing Weapon Ripper Special Melee Weapon Datajack Build | -11 -10 -9 -9 -7 -6 -6 -6 -6 -6 -5 -5 -5 -4 -4 -4 -4 -3 -3 ------- Run | Yrd Mat Mat Min Zio Pro Fac Low Low Dat Pro Fac DSF Fac Upp Upp Zhi Pro Res Slots Evolved 17 | 2 . 5 1 1 3 3 . . . . . . . . 1 . . 1 Power 2 | . . 1 . . . 1 . . . . . . . . . . . . Propulsion 4 | 1 . 1 . . 1 . . . . . . . . . . . . 1 Utility 8 | 1 . 2 . 1 1 2 . . . . . . . . 1 . . . Weapon 3 | . . 1 1 . 1 . . . . . . . . . . . . . Parts Attached 59 | 5 5 12 1 3 6 13 . 1 . 2 . 2 1 . 1 1 . 6 Power 16 | 1 1 6 . . 1 2 . 1 . . . 2 . . . 1 . 1 Engine 8 | 1 1 6 . . . . . . . . . . . . . . . . Core 6 | . . . . . 1 2 . 1 . . . 2 . . . . . . Reactor 2 | . . . . . . . . . . . . . . . . 1 . 1 Propulsion 13 | 2 1 1 . . 2 4 . . . 1 . . . . . . . 2 Treads . | . . . . . . . . . . . . . . . . . . . Leg 13 | 2 1 1 . . 2 4 . . . 1 . . . . . . . 2 Wheel . | . . . . . . . . . . . . . . . . . . . Hover . | . . . . . . . . . . . . . . . . . . . Flight . | . . . . . . . . . . . . . . . . . . . Utility 19 | 1 3 3 . 2 3 3 . . . 1 . . . . 1 . . 2 Device 16 | 1 3 1 . 2 3 2 . . . 1 . . . . 1 . . 2 Storage . | . . . . . . . . . . . . . . . . . . . Processor 2 | . . 1 . . . 1 . . . . . . . . . . . . Hackware . | . . . . . . . . . . . . . . . . . . . Protection 1 | . . 1 . . . . . . . . . . . . . . . . Artifact . | . . . . . . . . . . . . . . . . . . . Weapon 11 | 1 . 2 1 1 . 4 . . . . . . 1 . . . . 1 Energy Gun 2 | 1 . . . . . 1 . . . . . . . . . . . . Energy Cannon 3 | . . . . . . 2 . . . . . . 1 . . . . . Ballistic Gun . | . . . . . . . . . . . . . . . . . . . Ballistic Cannon 1 | . . . . . . 1 . . . . . . . . . . . . Launcher 1 | . . . 1 . . . . . . . . . . . . . . . Special Weapon 1 | . . 1 . . . . . . . . . . . . . . . . Impact Weapon . | . . . . . . . . . . . . . . . . . . . Slashing Weapon 1 | . . . . 1 . . . . . . . . . . . . . . Piercing Weapon . | . . . . . . . . . . . . . . . . . . . Special Melee Weapon 2 | . . 1 . . . . . . . . . . . . . . . 1 Unidentified Prototypes 4 | . . . . 1 . . . . . 1 . . . . . 2 . . Parts Lost . | . . . . . . . . . . . . . . . . . . . Power . | . . . . . . . . . . . . . . . . . . . Propulsion . | . . . . . . . . . . . . . . . . . . . Utility . | . . . . . . . . . . . . . . . . . . . Weapon . | . . . . . . . . . . . . . . . . . . . Highest Loss Streak . | . . . . . . . . . . . . . . . . . . . To Critical Strikes . | . . . . . . . . . . . . . . . . . . . Average Backups 1 | . . 1 1 1 2 2 2 2 2 2 2 2 2 3 2 2 2 2 Power . | . . . . . . . . . . . . . . . . . . . Propulsion . | . . . . . . . . . . . . . . . . . . . Utility 1 | . . . 1 . 1 1 1 1 1 1 1 1 1 2 1 . 1 1 Weapon . | . . . . . . . . . . . . . . . . . . . Tool/Special . | . . . . . . . . . . . . . . . . . . . Unused Backups 3 | . . . 1 . . 1 . . . . . . . . . . . 1 Power . | . . . . . . . . . . . . . . . . . . . Propulsion . | . . . . . . . . . . . . . . . . . . . Utility 2 | . . . . . . 1 . . . . . . . . . . . 1 Weapon 1 | . . . 1 . . . . . . . . . . . . . . . Tool/Special . | . . . . . . . . . . . . . . . . . . . Average Slot Usage (%) 92 | . 90 89 97 92 90 93 94 94 94 94 94 93 94 94 94 95 95 92 Engine 5 | . 16 18 16 15 6 2 . . . . . . . . . . . . Core 8 | . . . . . 5 11 15 15 15 15 15 15 15 15 15 12 10 5 Leg 22 | . 33 23 25 23 24 22 21 21 21 21 21 21 21 21 20 20 20 20 Device 28 | . 23 18 16 22 24 28 31 31 31 31 31 31 31 31 33 35 35 32 Processor 5 | . . 4 8 7 6 5 5 5 5 5 5 5 5 5 5 5 5 4 Energy Gun 6 | . 16 9 8 7 8 7 5 5 5 5 5 4 5 5 5 5 5 4 Energy Cannon 2 | . . . . . . 2 5 5 5 5 5 5 5 5 5 5 5 4 Ballistic Cannon 3 | . . . . . . 4 5 5 5 5 5 4 5 5 5 5 5 4 Launcher 1 | . . . 5 7 6 . . . . . . . . . . . . . Slashing Weapon 3 | . . . . 5 6 2 2 4 1 3 5 5 4 4 5 5 5 3 Special Melee Weapon 1 | . . 9 8 1 . 2 2 . 3 1 . . . . . . . . Peak Build Rating 112 | 5 8 19 20 40 47 81 83 84 84 86 84 86 89 89 94 96 96 112 Average Rating 64 | 3 6 14 19 29 42 67 81 83 82 83 84 84 87 88 92 94 96 102 On Entrance 61 | . 5 8 19 20 30 47 81 81 84 82 84 84 85 86 89 94 96 96 Avg Prop Armor Cover (%) . | . . . . . . . . . . . . . . . . . . . Naked Turns . | . . . . . . . . . . . . . . . . . . . Heaviest Build 93 | 6 8 24 27 30 39 59 61 65 65 65 65 93 82 82 83 83 80 86 Greatest Support 119 | 25 25 35 35 35 58 85 85 85 85 85 81 81 86 86 86 86 86 119 Greatest Overweight (x) 1 | . . . . . . . . . . . . 1 1 . . . . . Average Overweight (x) . | . . . . . . . . . . . . . . . . . . . Largest Inventory Capacity 6 | 2 2 3 3 3 5 5 5 6 6 6 6 6 6 6 6 6 6 6 Average Capacity 4 | 2 2 2 3 3 4 5 5 5 6 6 6 6 6 6 6 6 6 6 Most Carried 6 | . 2 3 3 3 5 5 5 6 6 6 6 6 6 5 6 6 6 6 Average Carried 4 | . 1 1 2 1 3 4 4 5 6 6 6 4 5 4 5 5 5 5 Final Capacity 6 | 2 2 3 3 3 5 5 5 6 6 6 6 6 6 6 6 6 6 6 Final Carried 6 | . 2 3 3 2 5 5 5 6 6 6 6 5 4 5 6 6 6 6 Scrap Suit Usage (%) 84 | . . . . 99 100 100 100 100 100 100 100 100 100 100 100 100 100 100 Parts Cannibalized 1 | . . . . . . . . 1 . . . . . . . . . . Class Distribution -------------------- 70% | Hacker-Assassin 24% | Hacker-Mutant 3% | Mutant Dominant Class ---------------- Mutant | -10/Materials Hacker-Mutant | -9/Materials Hacker-Mutant | -9/Mines Hacker-Mutant | -7/Zion Hacker-Assassin | -6/Proximity Caves Hacker-Assassin | -6/Factory Hacker-Assassin | -6/Lower Caves Hacker-Assassin | -6/Lower Caves Hacker-Assassin | -6/Data Miner Hacker-Assassin | -5/Proximity Caves Hacker-Assassin | -5/Factory Hacker-Assassin | -5/DSF Hacker-Assassin | -4/Factory Hacker-Assassin | -4/Upper Caves Hacker-Assassin | -4/Upper Caves Hacker-Assassin | -4/Zhirov Hacker-Assassin | -3/Proximity Caves Hacker-Assassin | -3/Research Resources | -11 -10 -9 -9 -7 -6 -6 -6 -6 -6 -5 -5 -5 -4 -4 -4 -4 -3 -3 ----------- Run | Yrd Mat Mat Min Zio Pro Fac Low Low Dat Pro Fac DSF Fac Upp Upp Zhi Pro Res Matter Collected 3156 | 250 50 170 10 49 91 584 122 160 . 448 . 264 14 56 196 30 174 488 Remotely . | . . . . . . . . . . . . . . . . . . . Salvage Created 7825 | 24 129 915 . . 504 690 480 416 . 1125 . 757 . . 442 172 620 1551 Parts 366 | 2 17 56 . . 20 55 15 21 . 34 . 26 . 3 30 1 32 54 Haulers Intercepted 2 | . . 1 . . . . . . . 1 . . . . . . . . Recyclers Shooed 3 | 1 . . . . . . . . . . . . . . . . . 2 Parts Field Recycled . | . . . . . . . . . . . . . . . . . . . Retrieved Matter . | . . . . . . . . . . . . . . . . . . . Parts Self-Destructed 180 | . . . . 3 31 . 20 26 . 35 . . . 3 29 1 32 . Prevented 6 | . . . . . 5 . . . . . . . . . 1 . . . Parts Restored . | . . . . . . . . . . . . . . . . . . . Kills | -11 -10 -9 -9 -7 -6 -6 -6 -6 -6 -5 -5 -5 -4 -4 -4 -4 -3 -3 ------- Run | Yrd Mat Mat Min Zio Pro Fac Low Low Dat Pro Fac DSF Fac Upp Upp Zhi Pro Res Combat Hostiles Destroyed 178 | . 10 23 . . 14 17 10 15 . 26 . 11 1 1 14 . 16 20 Melee 3 | . . . . . . . . 2 . . . . . . . . 1 . Guns 78 | . 10 21 . . 8 8 4 4 . 10 . 4 . . 5 . 1 3 Cannons 84 | . . . . . . 7 6 9 . 16 . 6 1 1 9 . 14 15 AOE 3 | . . . . . 3 . . . . . . . . . . . . . Classes Destroyed 19 | 1 3 4 . . 3 5 1 1 . . . 1 . . . . . . Worker 4 | . . . . . . 2 . . . . . . . . . . . 2 Builder 3 | . . . . . . 2 . . . . . . . . . . . 1 Tunneler 2 | 1 . 1 . . . . . . . . . . . . . . . . Hauler 2 | . . 1 . . . . . . . 1 . . . . . . . . Recycler 4 | . . . . . . 1 . . . . . . . . . . . 3 Minesweeper 3 | . . . . . . . . 1 . 1 . . . . 1 . . . Mechanic 2 | . . 1 . . . . . . . 1 . . . . . . . . Operator 2 | . . . . . . 1 . . . . . . . . . . . 1 Drone 1 | . . . . . 1 . . . . . . . . . . . . . Watcher 14 | . 1 4 . . . 3 . . . . . . . . . . . 6 Swarmer 41 | . 6 4 . . 6 . . 3 . 7 . . . . . . 8 7 Grunt 71 | . 4 13 . . 5 3 7 4 . 14 . 7 . . 8 . 3 3 Brawler 11 | . . . . . . . 1 6 . 3 . . . . . . 1 . Duelist 5 | . . 1 . . . 1 . . . 1 . . . . 2 . . . Sentry 15 | . . 5 . . . 3 1 1 . 1 . . 1 . 1 . 1 1 Specialist 4 | . . . . . . . . . . . . 4 . . . . . . Hunter 14 | . . . . . 1 6 1 . . . . . . . . . 2 4 Programmer 14 | . . . . . . 3 . 1 . . . . . 1 3 . 1 5 Behemoth 2 | . . . . . 1 1 . . . . . . . . . . . . Best Kill Streak 12 | 1 3 10 . . 3 4 4 8 . 12 . 7 1 1 6 . 5 9 Combat Bots Only 12 | . 3 5 . . 3 2 4 8 . 12 . 7 1 1 6 . 5 8 Max Kills in Single Turn 3 | 1 1 1 . . 2 2 1 2 . 1 . 1 1 1 1 . 1 3 Gunslinging . | . . . . . . . . . . . . . . . . . . . Exploded 2 | . . . . . 2 . . . . . . . . . . . . . Melee 1 | . . . . . . . . 1 . . . . . . . . 1 . Uniques/NPCs Destroyed . | . . . . . . . . . . . . . . . . . . . Combat | -11 -10 -9 -9 -7 -6 -6 -6 -6 -6 -5 -5 -5 -4 -4 -4 -4 -3 -3 -------- Run | Yrd Mat Mat Min Zio Pro Fac Low Low Dat Pro Fac DSF Fac Upp Upp Zhi Pro Res Hostile Shots Fired 1311 | . 69 163 . . 106 222 28 23 . 159 . 163 10 . 59 . 99 210 Missed 498 | . 19 38 . . 33 94 10 4 . 58 . 77 6 . 27 . 42 90 Hits 813 | . 50 125 . . 73 128 18 19 . 101 . 86 4 . 32 . 57 120 Melee 4 | . . . . . . . . 1 . 3 . . . . . . . . Projectile 809 | . 50 125 . . 73 128 18 18 . 98 . 86 4 . 32 . 57 120 AOE 1 | . . . . . . 1 . . . . . . . . . . . . Critical Strikes 39 | . . 2 . . 5 4 1 1 . 3 . 4 . . 5 . 2 12 Damage Taken 8107 | . 415 1152 . . 914 1258 190 235 . 826 . 884 41 . 294 . 455 1443 Core 6329 | . 332 864 . . 714 993 144 183 . 638 . 702 31 . 232 . 353 1143 Absorbed by Shields 1724 | . . . . . . 228 72 60 . 392 . 344 16 . 104 . 224 284 Redirected to Core 5414 | . 247 620 . . 661 892 144 171 . 578 . 553 31 . 201 . 300 1016 Ignored by Resistances 4579 | . 129 347 . . 270 432 71 79 . 679 . 876 40 . 253 . 479 924 Regen/Repaired (Parts) 61 | . . . . 37 . 14 . 10 . . . . . . . . . . Core Remaining (%) 94 | 100 100 . . . 100 . . . . 100 . 66 . . . . 100 . Volleys Fired 601 | 9 49 152 . . 59 70 17 20 . 63 . 39 4 1 31 . 29 58 Largest 3 | 1 1 1 . . 3 3 3 3 . 3 . 3 3 3 3 . 3 3 Hottest 230 | 50 50 100 . . 149 210 210 210 . 210 . 210 230 230 230 . 230 230 Shots Fired 1248 | 9 49 152 . . 90 184 48 60 . 186 . 116 12 3 92 . 75 172 Gun 636 | 9 49 151 . . 88 97 15 20 . 61 . 38 4 1 30 . 17 56 Cannon 609 | . . . . . . 87 33 40 . 125 . 78 8 2 62 . 58 116 Launcher 2 | . . . . . 2 . . . . . . . . . . . . . Special 1 | . . 1 . . . . . . . . . . . . . . . . Kinetic 326 | . . . . . . 64 17 20 . 63 . 39 4 1 31 . 29 58 Thermal 920 | 9 49 152 . . 88 120 31 40 . 123 . 77 8 2 61 . 46 114 Explosive 2 | . . . . . 2 . . . . . . . . . . . . . Electromagnetic . | . . . . . . . . . . . . . . . . . . . Robot Hit Streak 77 | 9 16 39 . . 28 36 35 77 . 64 . 53 23 3 36 . 44 75 Robot Miss Streak 3 | . 2 2 . . 1 2 1 1 . 3 . 1 1 . 2 . 1 3 Penetration Max 1 | . . . . . . 1 . 1 . 1 . . . . 1 . . 1 Secondary Targets . | . . . . . . . . . . . . . . . . . . . Shots Hit Robots 1092 | 9 40 160 4 3 84 150 38 53 1 158 . 97 11 2 72 4 66 140 Core Hits 405 | 1 17 52 . . 32 54 18 25 . 58 . 26 4 1 28 2 28 59 Critical Kills 3 | . . . . . . . . . . 1 . . . . . . . 2 Critical Parts Destroyed . | . . . . . . . . . . . . . . . . . . . Critical Strikes 125 | . 2 17 . . 8 18 7 9 . 25 . 9 1 . 6 . 6 17 Burn 79 | . 2 17 . . 7 7 4 5 . 18 . 7 1 . 2 . 3 6 Meltdown 3 | . . . . . . . . . . 1 . . . . . . . 2 Blast 42 | . . . . . . 11 3 4 . 6 . 2 . . 4 . 3 9 Sever 1 | . . . . . 1 . . . . . . . . . . . . . Melee Attacks 91 | . . 24 4 4 6 5 5 9 1 15 . . 3 . 1 4 5 5 Impact . | . . . . . . . . . . . . . . . . . . . Slashing 41 | . . . . 1 6 . 2 6 . 9 . . 3 . 1 4 5 4 Piercing . | . . . . . . . . . . . . . . . . . . . Sneak Attacks 49 | . . 21 4 3 . 5 2 4 1 7 . . . . 1 . . 1 Combat Hostiles . | . . . . . . . . . . . . . . . . . . . Follow-up Attacks . | . . . . . . . . . . . . . . . . . . . Damage Inflicted 25794 | 112 513 1808 . . 1449 3379 866 1453 . 4474 . 2578 295 67 2002 322 2071 4405 Guns 9129 | 112 513 1808 . . 1202 1442 277 373 . 997 . 625 72 22 474 . 310 902 Cannons 14822 | . . . . . . 1937 589 819 . 2818 . 1953 223 45 1473 . 1568 3397 Explosions 141 | . . . . . 141 . . . . . . . . . . . . . Melee 1702 | . . . . . 106 . . 261 . 659 . . . . 55 322 193 106 Ramming . | . . . . . . . . . . . . . . . . . . . Kinetic 6895 | . . . . . . 1334 212 350 . 1309 . 896 113 . 748 . 552 1381 Thermal 17056 | 112 513 1808 . . 1202 2045 654 842 . 2506 . 1682 182 67 1199 . 1326 2918 Explosive 141 | . . . . . 141 . . . . . . . . . . . . . Electromagnetic . | . . . . . . . . . . . . . . . . . . . Impact . | . . . . . . . . . . . . . . . . . . . Slashing 1702 | . . . . . 106 . . 261 . 659 . . . . 55 322 193 106 Piercing . | . . . . . . . . . . . . . . . . . . . Highest Corruption 3 | . . . . . . . . . . . . . . . . . . 3 Average Corruption 1 | . . . . . . . . . . . . . . . . . . 1 Corruption Purged 4 | . . . . . . . . . . . . . . . . . . 4 Corruption Blocked . | . . . . . . . . . . . . . . . . . . . Effects 2 | . . . . . . . . . . . . . . . . . . 2 Message Errors 1 | . . . . . . . . . . . . . . . . . . 1 Data Loss (minor) 1 | . . . . . . . . . . . . . . . . . . 1 Overload Shots . | . . . . . . . . . . . . . . . . . . . Overflow Damage 654 | . . . . . 6 58 . 64 . 229 . 28 . . 32 79 58 100 Projectiles 341 | . . . . . . 58 . . . 65 . 28 . . 32 . 58 100 Explosions 6 | . . . . . 6 . . . . . . . . . . . . . Melee 307 | . . . . . . . . 64 . 164 . . . . . 79 . . Knockbacks 37 | . . . . . . 1 . 1 . 10 . 5 . . 7 . 1 12 Impact . | . . . . . . . . . . . . . . . . . . . Kinetic 34 | . . . . . . 1 . . . 9 . 5 . . 6 . 1 12 Secondary 3 | . . . . . . . . 1 . 1 . . . . 1 . . . Self-Inflicted Damage . | . . . . . . . . . . . . . . . . . . . Shots . | . . . . . . . . . . . . . . . . . . . Rammed . | . . . . . . . . . . . . . . . . . . . Targets Rammed . | . . . . . . . . . . . . . . . . . . . Kicked . | . . . . . . . . . . . . . . . . . . . Crushed . | . . . . . . . . . . . . . . . . . . . Highest Temperature 354 | . 70 141 . . . 320 354 74 . 293 . . . 36 125 . . . Average Temperature 81 | . 28 53 . . . 120 122 31 . 96 . . . 24 51 . . . Received Heat Transfer 2494 | . 210 672 . . 186 440 43 62 . 371 . 257 6 . 103 . 40 104 Effects 1 | . . . . . . . 1 . . . . . . . . . . . Interference 1 | . . . . . . . 1 . . . . . . . . . . . Siege Activations . | . . . . . . . . . . . . . . . . . . . Martial Activations . | . . . . . . . . . . . . . . . . . . . Shielding Activations . | . . . . . . . . . . . . . . . . . . . Robots Disrupted . | . . . . . . . . . . . . . . . . . . . Combat Hostiles . | . . . . . . . . . . . . . . . . . . . Robots Corrupted . | . . . . . . . . . . . . . . . . . . . Combat Hostiles . | . . . . . . . . . . . . . . . . . . . Parts Fried . | . . . . . . . . . . . . . . . . . . . Impact Corruptions . | . . . . . . . . . . . . . . . . . . . Robots Melted 12 | . . 2 . . 3 2 . . . 1 . 1 . . . . . 3 Combat Hostiles 10 | . . 2 . . 3 2 . . . . . 1 . . . . . 2 Parts Melted 86 | . 1 17 . . 5 13 4 6 . 9 . 5 . . 3 . 5 18 Heat Transferred 39608 | 333 1628 6401 . . 3552 4648 1594 2055 . 6276 . 3658 411 87 2153 . 2062 4750 Parts Sabotaged . | . . . . . . . . . . . . . . . . . . . Parts Stolen . | . . . . . . . . . . . . . . . . . . . Parts Stripped . | . . . . . . . . . . . . . . . . . . . Power Chain Reactions . | . . . . . . . . . . . . . . . . . . . Alert | -11 -10 -9 -9 -7 -6 -6 -6 -6 -6 -5 -5 -5 -4 -4 -4 -4 -3 -3 ------- Run | Yrd Mat Mat Min Zio Pro Fac Low Low Dat Pro Fac DSF Fac Upp Upp Zhi Pro Res Maximum Alert Level 1 | . . . . . . 1 . . . . . 1 . . . . . 1 Low Security (%) 89 | 100 100 100 100 . . 99 . . . . 100 71 100 . . . . 48 Level 1 10 | . . . . . . . . . . . . 28 . . . . . 51 Level 2 . | . . . . . . . . . . . . . . . . . . . Level 3 . | . . . . . . . . . . . . . . . . . . . Level 4 . | . . . . . . . . . . . . . . . . . . . Level 5 . | . . . . . . . . . . . . . . . . . . . High Security . | . . . . . . . . . . . . . . . . . . . Max Security . | . . . . . . . . . . . . . . . . . . . Sterilizations 1 | . . . . . . . . . . . . 1 . . . . . . Peak Influence 388 | 5 72 196 51 . . 206 . . . . . 388 176 . . . . 378 Initial 176 | . . . 51 . . 168 . . . . . . 176 . . . . . Average 86 | . 28 67 13 . . 75 . . . . . 155 131 . . . . 163 Influence Increases 6049 | 5 297 756 . . 902 855 288 378 . 616 . 388 46 30 325 10 370 783 Destroy 0b10 Robot/C 4100 | . 200 460 . . 640 420 260 340 . 520 . 220 20 20 280 . 320 400 Destroy 0b10 Robot/NC 220 | 5 5 35 . . 10 50 . 5 . 30 . . . . 5 10 . 65 Destroy Leader 682 | . 42 130 . . 60 138 20 30 . 30 . 30 10 10 40 . 50 92 Allied During Kill 204 | . . . . . 162 25 8 3 . 6 . . . . . . . . Successful Hack 142 | . 35 47 . . . 52 . . . . . . 8 . . . . . Disable Machine 54 | . . 9 . . . 9 . . . . . 18 . . . . . 18 Anti-Garrison Action 150 | . . . . . . . . . . . . . . . . . . 150 Destroy Structure 47 | . . . . . . 11 . . . . . . 8 . . . . 28 Advance Influence 150 | . . . . . . 150 . . . . . . . . . . . . Lose Combat Pursuer 300 | . 15 75 . . 30 . . . . 30 . 120 . . . . . 30 Influence Decreases 5671 | 5 297 601 155 . 869 888 202 414 50 616 . . 332 132 295 40 370 405 Entered New Map 481 | . . . 104 . . 15 . 24 50 . . . 212 46 . 30 . . Time Decay 4818 | 5 245 601 51 . 669 873 162 370 . 576 . . 120 86 295 10 370 385 Lost Ally 320 | . . . . . 200 . 40 20 . 40 . . . . . . . 20 Purge Threat 52 | . 52 . . . . . . . . . . . . . . . . . Squads Dispatched 22 | . . 4 . . . 7 . . . 1 . 2 1 . . . . 7 Investigation 7 | . . 2 . . . 2 . . . . . . 1 . . . . 2 Extermination 6 | . . . . . . 4 . . . . . . . . . . . 2 Reinforcement 6 | . . 2 . . . 1 . . . . . 2 . . . . . 1 Assault 2 | . . . . . . . . . . 1 . . . . . . . 1 Garrison 1 | . . . . . . . . . . . . . . . . . . 1 Intercept . | . . . . . . . . . . . . . . . . . . . Searches Triggered . | . . . . . . . . . . . . . . . . . . . Construction Impeded 2 | . . . . . . 1 . . . . . . . . . . . 1 Haulers Reinforced . | . . . . . . . . . . . . . . . . . . . Active Scanning Responses . | . . . . . . . . . . . . . . . . . . . Cargo Convoy Interrupts . | . . . . . . . . . . . . . . . . . . . Stealth | -11 -10 -9 -9 -7 -6 -6 -6 -6 -6 -5 -5 -5 -4 -4 -4 -4 -3 -3 --------- Run | Yrd Mat Mat Min Zio Pro Fac Low Low Dat Pro Fac DSF Fac Upp Upp Zhi Pro Res Distress Signals 7 | . . 3 . . . 2 . . . . . . . . . . . 2 Communications Jammed . | . . . . . . . . . . . . . . . . . . . Distress Signals . | . . . . . . . . . . . . . . . . . . . Times Spotted 263 | . 15 40 . . 33 32 12 17 . 34 . 20 2 . 14 . 13 31 Peak Tracking Total 11 | . 4 5 . . 11 5 9 9 . 9 . 10 1 . 5 . 4 7 Tactical Retreats 15 | . 1 5 . . 2 . . . . 1 . 4 . . . . . 2 ECM-based Alert Blocks 4 | . . 4 . . . . . . . . . . . . . . . . Traps | -11 -10 -9 -9 -7 -6 -6 -6 -6 -6 -5 -5 -5 -4 -4 -4 -4 -3 -3 ------- Run | Yrd Mat Mat Min Zio Pro Fac Low Low Dat Pro Fac DSF Fac Upp Upp Zhi Pro Res Traps Triggered 5 | . . . . . . . . . . . . 2 . . . . . 3 Indirectly . | . . . . . . . . . . . . . . . . . . . Trap Hack Attempts 17 | . . . . . . 13 . . . . . . . . . . . 4 Triggered . | . . . . . . . . . . . . . . . . . . . Disarmed 1 | . . . . . . 1 . . . . . . . . . . . . Reprogrammed 3 | . . . . . . 2 . . . . . . . . . . . 1 Reused . | . . . . . . . . . . . . . . . . . . . Traps Extracted . | . . . . . . . . . . . . . . . . . . . Installed . | . . . . . . . . . . . . . . . . . . . Triggered . | . . . . . . . . . . . . . . . . . . . Machines | -11 -10 -9 -9 -7 -6 -6 -6 -6 -6 -5 -5 -5 -4 -4 -4 -4 -3 -3 ---------- Run | Yrd Mat Mat Min Zio Pro Fac Low Low Dat Pro Fac DSF Fac Upp Upp Zhi Pro Res Machines Disabled 11 | . . 1 . . 1 1 1 1 . 1 . 2 . . . . . 3 Max in Single Turn 1 | . . 1 . . 1 1 1 1 . 1 . 1 . . . . . 1 Garrison Access 4 | . . . . . . 2 . . . . . . 1 . . . . 1 Machines Repaired . | . . . . . . . . . . . . . . . . . . . Machines Dismantled . | . . . . . . . . . . . . . . . . . . . Machines Sabotaged . | . . . . . . . . . . . . . . . . . . . Overloaded Fab Kills . | . . . . . . . . . . . . . . . . . . . Hacking | -11 -10 -9 -9 -7 -6 -6 -6 -6 -6 -5 -5 -5 -4 -4 -4 -4 -3 -3 --------- Run | Yrd Mat Mat Min Zio Pro Fac Low Low Dat Pro Fac DSF Fac Upp Upp Zhi Pro Res Machines Accessed 50 | . 9 9 . . 1 10 . . 4 . 1 . 2 2 . 9 . 3 Terminals 19 | . 8 7 . . 1 1 . . . . 1 . . 1 . . . . Fabricators 2 | . . . . . . 2 . . . . . . . . . . . . Repair Stations 3 | . . 1 . . . 2 . . . . . . . . . . . . Recycling Units 3 | . 1 . . . . 1 . . . . . . . . . . . 1 Scanalyzers 5 | . . 1 . . . 2 . . . . . . 1 . . . . 1 Garrison Access 4 | . . . . . . 2 . . . . . . 1 . . . . 1 Total Hacks 211 | . 34 40 . . 7 27 . . 33 . 1 . 8 2 . 48 . 11 Successful 175 | . 28 25 . . 7 17 . . 33 . 1 . 7 2 . 48 . 7 Failed 33 | . 6 14 . . . 9 . . . . . . 1 . . . . 3 Catastrophic 5 | . 1 1 . . . . . . . . . . . . . . . 3 Database Lockouts 3 | . . 1 . . . 1 . . . . . . . . . . . 1 Manual 74 | . 22 28 . . . 17 . . . . . . 3 . . . . 4 Terminals 77 | . 33 33 . . 7 2 . . . . 1 . . 1 . . . . Fabricators 7 | . . . . . . 7 . . . . . . . . . . . . Repair Stations 5 | . . 1 . . . 4 . . . . . . . . . . . . Recycling Units 4 | . 1 . . . . 2 . . . . . . . . . . . 1 Scanalyzers 27 | . . 6 . . . 7 . . . . . . 7 . . . . 7 Garrison Access 9 | . . . . . . 5 . . . . . . 1 . . . . 3 Terminal Hacks 119 | . 19 8 . . 7 1 . . 33 . 1 . . 2 . 48 . . Record 57 | . 2 . . . 7 . . . 11 . . . . 1 . 36 . . Part Schematic 17 | . . . . . . . . . 13 . . . . . . 4 . . Robot Schematic 6 | . . . . . . . . . 6 . . . . . . . . . Robot Analysis 9 | . 5 . . . . . . . . . . . . . . 4 . . Prototype ID Bank 11 | . 3 1 . . . . . . 3 . . . . . . 4 . . Open Door 1 | . . . . . . . . . . . . . . 1 . . . . Open DSF 2 | . . . . . . 1 . . . . 1 . . . . . . . Level Access Points 2 | . 1 1 . . . . . . . . . . . . . . . . Branch Access Points 2 | . 1 1 . . . . . . . . . . . . . . . . Unreport Threat 1 | . 1 . . . . . . . . . . . . . . . . . Locate Traps 6 | . 3 3 . . . . . . . . . . . . . . . . Dispatch Records 1 | . 1 . . . . . . . . . . . . . . . . . Patrol Status 1 | . 1 . . . . . . . . . . . . . . . . . Recall Investigation 1 | . . 1 . . . . . . . . . . . . . . . . Recall Reinforcements 1 | . . 1 . . . . . . . . . . . . . . . . Registered Components 1 | . 1 . . . . . . . . . . . . . . . . . Fabricator Hacks 2 | . . . . . . 2 . . . . . . . . . . . . Load Schematic 1 | . . . . . . 1 . . . . . . . . . . . . Build 1 | . . . . . . 1 . . . . . . . . . . . . Repair Station Hacks 2 | . . . . . . 2 . . . . . . . . . . . . Scan Component 1 | . . . . . . 1 . . . . . . . . . . . . Repair 1 | . . . . . . 1 . . . . . . . . . . . . Recycling Unit Hacks 3 | . 1 . . . . 1 . . . . . . . . . . . 1 Report Inventory 2 | . . . . . . 1 . . . . . . . . . . . 1 Retrieve Components 1 | . 1 . . . . . . . . . . . . . . . . . Scanalyzer 22 | . . 6 . . . 4 . . . . . . 6 . . . . 6 Insert Component 6 | . . 2 . . . 1 . . . . . . 2 . . . . 1 Analyze 8 | . . 2 . . . 1 . . . . . . 2 . . . . 3 Retrieve Study 8 | . . 2 . . . 2 . . . . . . 2 . . . . 2 Garrison Access Hacks 3 | . . . . . . 2 . . . . . . 1 . . . . . Seal Access 3 | . . . . . . 2 . . . . . . 1 . . . . . Unauthorized Hacks 24 | . 8 11 . . . 5 . . . . . . . . . . . . Terminals 18 | . 8 10 . . . . . . . . . . . . . . . . Assimilate 2 | . . 2 . . . . . . . . . . . . . . . . Botnet 15 | . 8 7 . . . . . . . . . . . . . . . . Operators 1 | . . 1 . . . . . . . . . . . . . . . . Fabricators 1 | . . . . . . 1 . . . . . . . . . . . . Report 1 | . . . . . . 1 . . . . . . . . . . . . Repair Stations 2 | . . 1 . . . 1 . . . . . . . . . . . . Patch 2 | . . 1 . . . 1 . . . . . . . . . . . . Recycling Units 1 | . . . . . . 1 . . . . . . . . . . . . Mask 1 | . . . . . . 1 . . . . . . . . . . . . Scanalyzers . | . . . . . . . . . . . . . . . . . . . Garrison Access 2 | . . . . . . 2 . . . . . . . . . . . . Broadcast 1 | . . . . . . 1 . . . . . . . . . . . . Watchers 1 | . . . . . . 1 . . . . . . . . . . . . Data Cores Recovered 2 | . . . . . . 1 . . . . . . . . . . . 1 Used . | . . . . . . . . . . . . . . . . . . . Hacking Detections 21 | . 4 8 . . . 6 . . . . . . 1 . . . . 2 Full Trace Events 3 | . . 1 . . . 1 . . . . . . . . . . . 1 Feedback Events . | . . . . . . . . . . . . . . . . . . . Feedback Blocked . | . . . . . . . . . . . . . . . . . . . Robot Schematics Acquired 8 | . . . . 2 . . . . 6 . . . . . . . . . Robots Built 2 | . . . . . . 2 . . . . . . . . . . . . Authchips . | . . . . . . . . . . . . . . . . . . . Time 67 | . . . . . . 67 . . . . . . . . . . . . Total Robot Build Rating 8 | . . . . . . 8 . . . . . . . . . . . . Part Schematics Acquired 38 | . . 2 . 15 . 1 . . 13 . . . 2 . . 4 . 1 Parts Built . | . . . . . . . . . . . . . . . . . . . Authchips . | . . . . . . . . . . . . . . . . . . . Time . | . . . . . . . . . . . . . . . . . . . Total Part Build Rating . | . . . . . . . . . . . . . . . . . . . Part Studies Acquired 8 | . . 2 . . . 2 . . . . . . 2 . . . . 2 Parts Repaired 1 | . . . . . . 1 . . . . . . . . . . . . Time 50 | . . . . . . 50 . . . . . . . . . . . . Parts Recycled . | . . . . . . . . . . . . . . . . . . . Recycled Matter . | . . . . . . . . . . . . . . . . . . . Retrieved Matter . | . . . . . . . . . . . . . . . . . . . Retrieved Components 10 | . 10 . . . . . . . . . . . . . . . . . Parts Scanalyzed 6 | . . 2 . . . 1 . . . . . . 2 . . . . 1 Part Schematics Acquired 6 | . . 2 . . . 1 . . . . . . 2 . . . . 1 Parts Damaged . | . . . . . . . . . . . . . . . . . . . Bothacking | -11 -10 -9 -9 -7 -6 -6 -6 -6 -6 -5 -5 -5 -4 -4 -4 -4 -3 -3 ------------ Run | Yrd Mat Mat Min Zio Pro Fac Low Low Dat Pro Fac DSF Fac Upp Upp Zhi Pro Res Used RIF Installer . | . . . . . . . . . . . . . . . . . . . Robots Hacked 24 | . . 12 3 3 . 2 . . 1 2 . . . . . . . 1 Non-combat 14 | . . 10 . . . 2 . . . 2 . . . . . . . . Combat 10 | . . 2 3 3 . . . . 1 . . . . . . . . 1 Robot Hacks Applied 35 | . . 21 3 3 . 4 . . 1 2 . . . . . . . 1 parse_system 15 | . . 6 3 3 . . . . 1 1 . . . . . . . 1 no_distress 15 | . . 12 . . . 2 . . . 1 . . . . . . . . find_chute 2 | . . . . . . 2 . . . . . . . . . . . . find_station 1 | . . 1 . . . . . . . . . . . . . . . . check_alert 2 | . . 2 . . . . . . . . . . . . . . . . Relay Couplers Released 1 | . . . . . . . . . . . . . . . . . . 1 Machine Destruction 1 | . . . . . . . . . . . . . . . . . . 1 Fabnet Peak Effective % . | . . . . . . . . . . . . . . . . . . . Robots Rewired 6 | . . . . . . . 2 2 . 2 . . . . . . . . Allies Hacked . | . . . . . . . . . . . . . . . . . . . Hacks Repelled . | . . . . . . . . . . . . . . . . . . . Allies | -11 -10 -9 -9 -7 -6 -6 -6 -6 -6 -5 -5 -5 -4 -4 -4 -4 -3 -3 -------- Run | Yrd Mat Mat Min Zio Pro Fac Low Low Dat Pro Fac DSF Fac Upp Upp Zhi Pro Res Total Allies 24 | . . . 3 9 . 5 2 2 . 2 . . . . . . . 1 Largest Group 12 | . . . 3 12 12 3 2 2 2 2 . . . . . . . 1 Highest-Rated Group 305 | . . . 40 305 305 84 64 50 50 59 . . . . . . . 127 Highest-Rated Ally 127 | . . . 16 40 40 32 32 30 30 30 . . . . . . . 127 Zionite Dispatches 2 | . . . . . . 1 . . . . . . . . . . . 1 Fire 1 | . . . . . . 1 . . . . . . . . . . . . Hero 1 | . . . . . . . . . . . . . . . . . . 1 Total Orders . | . . . . . . . . . . . . . . . . . . . Ally Attacks 168 | . . . . . 111 29 10 9 . 9 . . . . . . . . Total Damage 3126 | . . . . . 2052 444 323 151 . 156 . . . . . . . . Kills 30 | . . . . . 20 5 3 2 . . . . . . . . . . Allies Corrupted 3 | . . . . . . 2 . 1 . . . . . . . . . . Allies Melted . | . . . . . . . . . . . . . . . . . . . Intel | -11 -10 -9 -9 -7 -6 -6 -6 -6 -6 -5 -5 -5 -4 -4 -4 -4 -3 -3 ------- Run | Yrd Mat Mat Min Zio Pro Fac Low Low Dat Pro Fac DSF Fac Upp Upp Zhi Pro Res Active Infowar (turns) 5006 | 15 644 865 . . 342 . . . . . . . . . 920 210 1176 834 IFF 342 | . . . . . 342 . . . . . . . . . . . . . Terrain 3140 | . . . . . . . . . . . . . . . 920 210 1176 834 Seismic 525 | 15 510 . . . . . . . . . . . . . . . . . ECM 999 | . 134 865 . . . . . . . . . . . . . . . . Robot Analysis Total 9 | . 5 . . . . . . . . . . . . . . 4 . . Derelict Logs Recovered 11 | . . . 1 2 2 . 1 . . 2 . . . 2 1 . . . Drone Launches . | . . . . . . . . . . . . . . . . . . . Drone Recoveries . | . . . . . . . . . . . . . . . . . . . Zionite Intel Received 1 | . . . . . . 1 . . . . . . . . . . . . Unaware Analyses 1 | . . . . . . 1 . . . . . . . . . . . . Exploration | -11 -10 -9 -9 -7 -6 -6 -6 -6 -6 -5 -5 -5 -4 -4 -4 -4 -3 -3 ------------- Run | Yrd Mat Mat Min Zio Pro Fac Low Low Dat Pro Fac DSF Fac Upp Upp Zhi Pro Res Turns Passed 17884 | 60 647 1895 234 1583 1926 2206 854 755 131 1791 17 278 254 1264 1427 210 1176 1176 Spaces Moved 12180 | 38 397 1111 189 1212 1207 1486 561 500 102 1088 15 97 166 1199 1144 185 808 675 Core 15 | 15 . . . . . . . . . . . . . . . . . . Treads . | . . . . . . . . . . . . . . . . . . . Legs 12165 | 23 397 1111 189 1212 1207 1486 561 500 102 1088 15 97 166 1199 1144 185 808 675 Wheels . | . . . . . . . . . . . . . . . . . . . Hover . | . . . . . . . . . . . . . . . . . . . Flight . | . . . . . . . . . . . . . . . . . . . Fastest Speed 50 | 50 120 105 105 105 105 105 120 120 120 120 120 120 105 105 105 105 105 105 Average Speed 111 | 92 120 113 105 105 109 114 120 120 120 120 120 120 113 105 105 105 105 107 Slowest Speed 190 | 120 120 120 105 105 112 120 120 120 120 120 120 190 175 105 105 105 105 111 Overloaded Moves . | . . . . . . . . . . . . . . . . . . . Propulsion Burnouts . | . . . . . . . . . . . . . . . . . . . Robots Hopped . | . . . . . . . . . . . . . . . . . . . Potential Cave-ins . | . . . . . . . . . . . . . . . . . . . Cave-ins Triggered . | . . . . . . . . . . . . . . . . . . . Exploration Rate (%) 61 | 3 85 58 38 90 98 33 73 66 77 94 1 70 5 97 96 62 96 21 Regions Visited 18 Branch Regions 11 Pre-discovered Areas 7 | . . . . . 1 . 1 . 1 . . . . 1 . 3 . . Known Exits Taken 16 | . 1 1 1 1 1 1 1 1 1 1 1 . 1 1 1 1 1 . Unknown Exits Taken 1 | 1 . . . . . . . . . . . . . . . . . . Scrap Searched 22 | . . . 1 2 5 . 2 3 . 2 . . . 3 1 . 3 . Spaces Dug 5 | . . . . . . . 2 . . . . . 3 . . . . . Terrain Destroyed 125 | . . . . . 14 10 8 8 . 37 . . 4 . 20 . 12 12 Melee 5 | . . . . . . . 2 . . . . . 3 . . . . . Projectile 106 | . . . . . . 10 6 8 . 37 . . 1 . 20 . 12 12 AOE 14 | . . . . . 14 . . . . . . . . . . . . . Terrain Rammed . | . . . . . . . . . . . . . . . . . . . Walls Destroyed . | . . . . . . . . . . . . . . . . . . . Machines Disabled . | . . . . . . . . . . . . . . . . . . . Actions | -11 -10 -9 -9 -7 -6 -6 -6 -6 -6 -5 -5 -5 -4 -4 -4 -4 -3 -3 --------- Run | Yrd Mat Mat Min Zio Pro Fac Low Low Dat Pro Fac DSF Fac Upp Upp Zhi Pro Res Total 15461 | 51 523 1578 223 1519 1717 1848 700 605 109 1417 14 172 222 1201 1305 194 1072 991 Wait 1907 | . 36 199 27 287 358 150 104 42 6 194 . 1 11 . 101 . 195 196 Move 12162 | 37 396 1110 188 1211 1206 1485 560 499 101 1087 14 96 165 1198 1143 184 807 675 Hop . | . . . . . . . . . . . . . . . . . . . Pick Up 87 | . 6 10 1 4 12 15 1 7 . 2 . 2 7 1 6 2 5 6 Fast Attach 24 | 5 3 3 1 1 2 4 . . . . . . 1 . . . . 4 Attach 7 | . . 3 . 1 . 1 . . . . . . . . 1 1 . . Detach 6 | . 1 1 . 1 . 1 . . . . . . 1 . . . . 1 Swap 67 | . 3 10 . 4 4 15 2 4 1 6 . 3 2 1 . 2 . 10 Drop 102 | . 8 12 2 5 10 21 1 6 . 3 . 5 9 . 4 1 5 10 Fire 601 | 9 49 152 . . 59 70 17 20 . 63 . 39 4 1 31 . 29 58 Melee 91 | . . 24 4 4 6 5 5 9 1 15 . . 3 . 1 4 5 5 Ram . | . . . . . . . . . . . . . . . . . . . Kick . | . . . . . . . . . . . . . . . . . . . Crush . | . . . . . . . . . . . . . . . . . . . Escape Stasis . | . . . . . . . . . . . . . . . . . . . Rewire . | . . . . . . . . . . . . . . . . . . . Trap 17 | . . . . . . 13 . . . . . . . . . . . 4 Miscellaneous 390 | . 21 54 . 1 60 68 10 18 . 47 . 26 19 . 18 . 26 22 Route ------- -11/Scrapyard -10/Materials (discovered 4 exits: *Mat x3 / *Min) -9/Materials (discovered 4 exits: Mat x3 / *Min) -9/Mines -7/Zion -6/Proximity Caves -6/Factory (discovered 6 exits: *Fac x4 / *Low x2) -6/Lower Caves -6/Lower Caves (discovered 2 exits: *Fac / *Dat) -6/Data Miner -5/Proximity Caves -5/Factory (discovered 2 exits: Upp / DSF) -5/DSF -4/Factory -4/Upper Caves -4/Upper Caves (discovered 2 exits: *Res / *Zhi) -4/Zhirov -3/Proximity Caves -3/Research History --------- Turn | Location | Event 1 | -11/Scrapyard | Upgraded with Propulsion slot (x1) 1 | -11/Scrapyard | Upgraded with Utility slot (x1) 8 | -11/Scrapyard | Discovered new exit (range 16) 61 | -11/Scrapyard | Entered Materials 110 | -10/Materials | Identified exit to Materials 110 | -10/Materials | Identified exit to Mines 318 | -10/Materials | Build established: Mutant 708 | -10/Materials | Entered another Materials area 710 | -9/Materials | Reached level 2 710 | -9/Materials | Reached level 3 710 | -9/Materials | Reached level 4 710 | -9/Materials | Upgraded with Power slot (x1) 710 | -9/Materials | Upgraded with Propulsion slot (x1) 710 | -9/Materials | Upgraded with Utility slot (x1) 710 | -9/Materials | Upgraded with Weapon slot (x1) 1011 | -9/Materials | Build established: Hacker-Mutant 1786 | -9/Materials | Reached level 5 1822 | -9/Materials | Upgraded with Utility slot (x1) 2168 | -9/Materials | Central database locked down 2168 | -9/Materials | Identified exit to Mines 2168 | -9/Materials | Identified exit to Materials 2479 | -9/Materials | Reached level 6 2603 | -9/Materials | Entered Mines 2603 | -9/Mines | Upgraded with Weapon slot (x1) 2689 | -9/Mines | YI-UF0 nonchalantly dropped a Grenade Launcher on the ground 2700 | -9/Mines | Assisted by bots powering up and referring to "LRC-V3" 2742 | -9/Mines | Found a Scrap Suit stashed away for nefarious purposes 2745 | -9/Mines | Found Scrap Suit 2788 | -9/Mines | Learned 2 Materials zone layouts 2823 | -9/Mines | A Derelict revealed a hidden shortcut to a safe place 2832 | -9/Mines | Identified exit to Zion 2837 | -9/Mines | Entered Zion 2837 | -7/Zion | Accompanied by 3 allies 2839 | -7/Zion | Reached level 7 2839 | -7/Zion | Upgraded with Utility slot (x1) 2857 | -7/Zion | Given A8's code to call for help 3068 | -7/Zion | Learned Factory terminal intel 3535 | -7/Zion | Found Prototype Device 3670 | -7/Zion | Identified Phasing AFG 3683 | -7/Zion | Gained Derelict followers 3851 | -7/Zion | Met Imprinter 3876 | -7/Zion | Imprinted 3878 | -7/Zion | Declared Zion's savior 4232 | -7/Zion | Visited the Megawrench Repair Shop 4251 | -7/Zion | Megawrench repaired 7 parts 4263 | -7/Zion | Discovered new exit (range 11) 4282 | -7/Zion | Identified exit to Proximity Caves 4420 | -7/Zion | Entered Proximity Caves 4420 | -6/Proximity Caves | Accompanied by 12 allies 4422 | -6/Proximity Caves | Reached level 8 4422 | -6/Proximity Caves | Reached level 9 4422 | -6/Proximity Caves | Reached level 10 4422 | -6/Proximity Caves | Reached level 11 4422 | -6/Proximity Caves | Upgraded with Propulsion slot (x1) 4422 | -6/Proximity Caves | Upgraded with Utility slot (x1) 4511 | -6/Proximity Caves | Spotter reported a threat 4894 | -6/Proximity Caves | Spotted B-75 Beast 4899 | -6/Proximity Caves | Build established: Hacker-Assassin 4915 | -6/Proximity Caves | Destroyed B-75 Beast 5114 | -6/Proximity Caves | Reached level 12 5141 | -6/Proximity Caves | Upgraded with Weapon slot (x1) 5234 | -6/Proximity Caves | Build established: Hacker-Mutant 5291 | -6/Proximity Caves | Discovered new exit (range 9) 5303 | -6/Proximity Caves | Identified exit to Factory 5497 | -6/Proximity Caves | Reached level 13 5551 | -6/Proximity Caves | Lost 6 allies 5567 | -6/Proximity Caves | Learned Extension emergency access door positions 5567 | -6/Proximity Caves | Learned location of 1 exit from Factory 5567 | -6/Proximity Caves | Learned Factory trap positions 5567 | -6/Proximity Caves | Learned Extension trap positions 5601 | -6/Proximity Caves | Attracted the attention of an 0b10 base 5920 | -6/Proximity Caves | Build established: Hacker-Assassin 5925 | -6/Proximity Caves | Reached level 14 6169 | -6/Proximity Caves | Attracted the attention of an 0b10 checkpoint 6346 | -6/Proximity Caves | Entered Factory 6347 | -6/Factory | Identified exit to Factory 6347 | -6/Factory | Identified exit to Lower Caves 6348 | -6/Factory | Reached level 15 6349 | -6/Factory | Loaded intel: 90 trap records 6350 | -6/Factory | Loaded intel: 26 terminal locations 6517 | -6/Factory | Central database locked down 6555 | -6/Factory | Spotted B-75 Beast 6605 | -6/Factory | Destroyed B-75 Beast 6649 | -6/Factory | Upgraded with Utility slot (x1) 6699 | -6/Factory | Reached level 16 6759 | -6/Factory | Retrieved Zion intel report: Unaware Analyses 6760 | -6/Factory | Zion Fire squad teleported in 6997 | -6/Factory | Upgraded with Power slot (x1) 7652 | -6/Factory | Lost 3 allies 7752 | -6/Factory | Reached level 17 7846 | -6/Factory | Upgraded with Utility slot (x1) 7960 | -6/Factory | Terminal network hard line cut 7991 | -6/Factory | Repaired Phase Shifter 8175 | -6/Factory | Fabricated Y-54 Guardian (x2) 8552 | -6/Factory | Entered Lower Caves 8552 | -6/Lower Caves | Accompanied by 2 allies 9130 | -6/Lower Caves | Attracted the attention of an 0b10 outpost 9153 | -6/Lower Caves | Reached level 18 9365 | -6/Lower Caves | Discovered new exit (range 16) 9383 | -6/Lower Caves | Identified exit to Lower Caves 9406 | -6/Lower Caves | Entered another Lower Caves area 9406 | -6/Lower Caves | Accompanied by 2 allies 9457 | -6/Lower Caves | Found DCF Scrap (15 items) 9503 | -6/Lower Caves | Discovered exit to Factory (range 7) 9621 | -6/Lower Caves | Attracted the attention of an 0b10 outpost 9667 | -6/Lower Caves | Destroyed 8 combat bots 9730 | -6/Lower Caves | Reached level 19 10132 | -6/Lower Caves | Discovered new exit (range 17) 10150 | -6/Lower Caves | Identified exit to Data Miner 10161 | -6/Lower Caves | Entered Data Miner 10161 | -6/Data Miner | Accompanied by 2 allies 10161 | -6/Data Miner | Discovered new exit (range 6) 10167 | -6/Data Miner | Identified exit to Proximity Caves 10182 | -6/Data Miner | Met Data Miner 10228 | -6/Data Miner | Learned location of Section 7 (-2) 10228 | -6/Data Miner | Acquired the access code to Warlord's prototype stash 10254 | -6/Data Miner | Received God Mode back door access code from Data Miner 10292 | -6/Data Miner | Entered Proximity Caves 10292 | -5/Proximity Caves | Accompanied by 2 allies 10541 | -5/Proximity Caves | Reached level 20 10560 | -5/Proximity Caves | Learned Factory terminal intel 10600 | -5/Proximity Caves | Unaware initiated a cargo recovery operation 11030 | -5/Proximity Caves | Attracted the attention of an 0b10 outpost 11138 | -5/Proximity Caves | Destroyed 12 combat bots 11245 | -5/Proximity Caves | Discovered exit to Factory (range 15) 11599 | -5/Proximity Caves | Reached level 21 12083 | -5/Proximity Caves | Entered Factory 12084 | -5/Factory | Identified exit to Upper Caves 12085 | -5/Factory | Loaded intel: 26 terminal locations 12099 | -5/Factory | Identified exit to DSF 12100 | -5/Factory | Entered DSF 12102 | -5/DSF | Reached level 22 12121 | -5/DSF | Additional patrols routed to DSF 12176 | -5/DSF | Core integrity fell below 50% 12280 | -5/DSF | Discovered new exit (range 18) 12360 | -5/DSF | Destroyed 7 combat bots 12363 | -5/DSF | Sterilization system engaged 12377 | -5/DSF | Identified exit to Factory 12378 | -5/DSF | Entered Factory 12380 | -4/Factory | Reached level 23 12568 | -4/Factory | Discovered new exit (range 14) 12600 | -4/Factory | Identified exit to Upper Caves 12632 | -4/Factory | Entered Upper Caves 12652 | -4/Upper Caves | Learned location of Quarantine (-2) 13320 | -4/Upper Caves | Discovered new exit (range 17) 13335 | -4/Upper Caves | Identified exit to Upper Caves 13356 | -4/Upper Caves | Learned Research terminal intel 13896 | -4/Upper Caves | Entered another Upper Caves area 14007 | -4/Upper Caves | Discovered new exit (range 18) 14025 | -4/Upper Caves | Identified exit to Research 14209 | -4/Upper Caves | Reached level 24 14403 | -4/Upper Caves | Upgraded with Utility slot (x1) 15036 | -4/Upper Caves | Discovered new exit (range 14) 15068 | -4/Upper Caves | Identified exit to Zhirov 15101 | -4/Upper Caves | Learned Research emergency access door positions 15270 | -4/Upper Caves | Attracted the attention of an 0b10 checkpoint 15323 | -4/Upper Caves | Entered Zhirov 15323 | -4/Zhirov | Discovered new exit (range 3) 15325 | -4/Zhirov | Identified exit to Proximity Caves 15365 | -4/Zhirov | Learned location of Testing (-3) 15365 | -4/Zhirov | Learned location of Command (-1) 15421 | -4/Zhirov | Found Alien Artifact 15422 | -4/Zhirov | Identified Integrated Dissipator 15422 | -4/Zhirov | Installed Integrated Dissipator, increased core heat dissipation (+20) 15533 | -4/Zhirov | Entered Proximity Caves 15535 | -3/Proximity Caves | Reached level 25 15578 | -3/Proximity Caves | Attracted the attention of an 0b10 checkpoint 15930 | -3/Proximity Caves | Reached level 26 16300 | -3/Proximity Caves | Discovered exit to Research (range 7) 16709 | -3/Proximity Caves | Entered Research 16711 | -3/Research | Loaded intel: 23 terminal locations 16711 | -3/Research | Reached level 27 16711 | -3/Research | Upgraded with Propulsion slot (x1) 16938 | -3/Research | Garrison activated, responded to threat 17145 | -3/Research | Watched by a mysterious "MATRIX" hacker. 17146 | -3/Research | Central database locked down 17350 | -3/Research | Destroyed 8 combat bots 17486 | -3/Research | Reached level 28 17744 | -3/Research | Zion hero teleported in (CL-ANK) 17818 | -3/Research | Spotted B-86 Titan 17851 | -3/Research | Core integrity fell below 50% 17866 | -3/Research | Core integrity fell below 20% 17885 | -3/Research | Destroyed by B-86 Titan with Hardcell Cannon Last Messages --------------- 17862_ U-05 Engineer builds a Wall. 17862_ Adv. Heat Sink melted. 17862_ P-80 Master destroyed. 17862_ M-28 Smith repairs S-43 Plague Xenon Bombardment Thruster. 17863_ System Restoration Module purges 1% system corruption (1%). 17863_ Acquired 40 matter. 17866_ U-05 Engineer builds a Wall. 17868_ System Restoration Module purges 1% system corruption (0%). 17868_ P-80 Master destroyed. 17868_ U-05 Engineer destroyed. 17869_ Acquired 6 matter. 17869_ Penetrated by Slug. 17871_ Destroyed Lgt. Antimatter Reactor. 17871_ S-43 Plague Hvy. Machine Gun blasted off. 17871_ S-43 Plague knocked back. 17872_ Acquired 6 matter. 17872_ Knocked back. 17875_ S-43 Plague destroyed. 17875_ Penetrated by Slug. 17882_ Slug penetrates Wall. Map ----- +----------------------------------------------------+ | ????????????????????????????????????????????? | | ????????????????????????????????????????????? | | ????????????????????????????????????????????? | | ????????????????????????????????????????????? | | ????????????????????????????????????????????? | | ????????????????????????????????????????????? | | ????????????????????????????????????????????? | | ?????????????????????????????????? ??????? | | ????????????? ????????????????? #?????? | | ????????????? ????????????????? #?????? | | ????????????? #???????????????? #?????? | | ????????????? #???????????????? #?????? | | ????????????# g#???????????????? #?????? | | ????????????# #???????????????? #?????? | | ????????????# g #???????????????? k#?????? | | ????????????# g#???????????????? #?????? | | ????????????# #???????????????# #?????? | | ????????????# #???????????????# +?????? | | ????????????# #???????????????# #?????! | | ????????????# #???????????????# #?? ! | | ????????????# #???###?????????# # ??? | | ????????????# k #####;########### ###+### | | ????????????# k % ![! ^% | | ????????????# % [[%%=| | | ????????????# % % !%%*=!^[ | | ????????????# @ % %!=%%BBA | | ?????????#####+##############;;;#!*R ]] | | ?????????# # ! #% ]] | | ???????### # # =] % | | ???????#" """ # """ % #%%%=* * | | ???????#"" """ = + """" + %%%%= | | ???????#"" """ ""# """" # =%= | | ???????#T! ""# """" # | | ???????#"" # ##### # | | ???????#"" """ # #??## # | | ???????#"" """ # """" #????###? | | ???????### """ "" # """" #????????? | | ?????????# # """" #?????????? | | ?????????# # """" #??????????? | | ?????????####+######### #??????????? | | ????????????# #???????# #??????????? | | ????????????# #???????# #??????????? | | ????????????# #???????#######+####??????????? | | ????????????# #??????????? #????????????????? | | ????????????# #?????????? ?????????????????? | | ????????????# #????? ?""" ?????????????????? | | ????????????# #????? ?""" ??????????????????? | | ????????????# ####?? ?""" ??????????????????? | | ????????????# #?? ?"""???????????????????? | | ??????????###+## #? ?"""???????????????????? | +----------------------------------------------------+ Best States ------------- Heat Dissipation 114 Energy Generation 67 Energy Capacity 625 Matter Stores 300 Matter Capacity 300 Sight Range 20 Robot Scan Range 22 Terrain Scan Range 20 Terrain Scan Density 310 ECM Strength 1 Base Temperature (-) 100 EM Shielding 2 Armor Coverage 150 Resistance: KI 40 Resistance: TH 40 Resistance: EX 40 Resistance: EM 20 Resistance: I 20 Resistance: S 20 Resistance: P 20 Phase Shifting 10 Evasion (%) 80 Offensive Hacking 20 Defensive Hacking 15 Item Schematics ----------------- Lgt. Armor Plating | -9/Materials | Scanalyzed Aluminum Leg | -9/Materials | Scanalyzed Thermic Laser | -7/Zion | Archive Core Analyzer | -7/Zion | Archive Adv. Cooling System | -7/Zion | Archive Matter Compressor | -7/Zion | Archive Imp. Carbon-fiber Leg | -7/Zion | Archive Jamming Amplifier | -7/Zion | Archive Imp. Trap Scanner | -7/Zion | Archive Arm. Huge Wheel | -7/Zion | Archive Adv. Assault Cannon | -7/Zion | Archive Flexi-carbon Leg | -7/Zion | Archive Shock Absorption System | -7/Zion | Archive Hvy. Flak Cannon | -7/Zion | Archive Adv. Terrain Scan Processor | -7/Zion | Archive Adv. Drone Bay | -7/Zion | Archive Tiamat Missile Launcher | -7/Zion | Archive System Restoration Module | -6/Factory | Scanalyzed Combat Drone Bay | -6/Data Miner | Free Lgt. Regenerative Plating | -6/Data Miner | Free Enh. Flexi-carbon Leg | -6/Data Miner | Free Imp. Energy Well | -6/Data Miner | Free Imp. KE Penetrator | -6/Data Miner | Free Field Propulsion Array | -6/Data Miner | Free Adv. Reaction Control System | -6/Data Miner | Free Dispersion Rifle | -6/Data Miner | Free Mni. Drone Bay | -6/Data Miner | Free Imp. Point Defense System | -6/Data Miner | Free Matter Neutralizer | -6/Data Miner | Free Hyp. Railgun | -6/Data Miner | Free Adv. Remote Force Field | -6/Data Miner | Free Arm. Leg | -4/Factory | Scanalyzed Lrn. Phase Cannon | -4/Factory | Scanalyzed Assault Drone Bay | -4/Zhirov | Free Exp. Heat Sink | -4/Zhirov | Free Exp. Optical Array | -4/Zhirov | Free Imp. Arc Thrower | -4/Zhirov | Free Adv. Datajack | -3/Research | Scanalyzed Robot Schematics ------------------ L-41 Fighter | -7/Zion | Archive Y-54 Guardian | -7/Zion | Archive S-27 Virus | -6/Data Miner | Free E-15 Imp | -6/Data Miner | Free G-50 Soldier | -6/Data Miner | Free G-67 Veteran | -6/Data Miner | Free A-27 Freighter | -6/Data Miner | Free O-32 Director | -6/Data Miner | Free Fabricated ------------ Y-54 Guardian | x2 | -6/Factory Repaired ---------- Phase Shifter | 60% | -6/Factory Studied --------- Aluminum Leg | -9/Materials | Hacked Med. Laser | -9/Materials | Hacked Carbon-fiber Leg | -6/Factory | Hacked Imp. Carbon-fiber Leg | -6/Factory | Hacked Flexi-carbon Leg | -4/Factory | Hacked Arm. Leg | -4/Factory | Hacked Gauss Cannon | -3/Research | Hacked Neutrino Core | -3/Research | Hacked Alien Tech Used ----------------- Integrated Dissipator Achievements -------------- None Challenges ------------ None RPGLIKE | -11 -10 -9 -9 -7 -6 -6 -6 -6 -6 -5 -5 -5 -4 -4 -4 -4 -3 -3 --------- Run | Yrd Mat Mat Min Zio Pro Fac Low Low Dat Pro Fac DSF Fac Upp Upp Zhi Pro Res Levels Raised 27 | . . 5 . 1 7 3 1 1 . 2 . 1 1 . 1 . 2 2 XP Earned 44877 | 4000 1305 6387 500 2077 10133 4301 1182 1138 220 2942 734 1049 1630 452 1155 244 2632 2796 XP Spent 42990 | 3950 . 5520 2000 1400 8960 5100 330 1500 2220 2850 . 1100 600 275 2690 . 2900 1595 Upgrades 85 | 18 . 9 4 1 16 3 3 1 9 5 . 2 1 1 2 . 7 3 Power Slot 2 | . . 1 . . . 1 . . . . . . . . . . . . Propulsion Slot 4 | 1 . 1 . . 1 . . . . . . . . . . . . 1 Utility Slot 8 | 1 . 2 . 1 1 2 . . . . . . . . 1 . . . Weapon Slot 3 | . . 1 1 . 1 . . . . . . . . . . . . . Core Integrity 5 | . . . . . 4 . . . . . . . . . . . . 1 Heat Dissipation 7 | 1 . 1 . . . . 3 . 2 . . . . . . . . . Energy Generation 2 | 1 . . . . . . . . 1 . . . . . . . . . Mass Support 2 | 1 . . . . . . . . . . . . 1 . . . . . Inventory Capacity 6 | 2 . 1 . . 2 . . 1 . . . . . . . . . . Sight Range 4 | . . . . . 2 . . . . . . . . . . . 2 . Sensor Range 11 | 8 . . . . 1 . . . . . . . . 1 . . 1 . Terrain Scan Density 3 | 1 . . . . . . . . . . . . . . 1 . . 1 Ranged Accuracy 5 | 1 . 1 1 . 1 . . . . . . 1 . . . . . . Melee Accuracy 2 | . . . . . 2 . . . . . . . . . . . . . Hack Attack % 2 | . . . 2 . . . . . . . . . . . . . . . Hack Defense % 3 | 1 . 1 . . 1 . . . . . . . . . . . . . KI Resistance % 4 | . . . . . . . . . 2 2 . . . . . . . . TH Resistance % 4 | . . . . . . . . . 2 2 . . . . . . . . EX Resistance % 4 | . . . . . . . . . 2 1 . 1 . . . . . . KI Damage % 2 | . . . . . . . . . . . . . . . . . 2 . TH Damage % 2 | . . . . . . . . . . . . . . . . . 2 . Protomatter Created 3635 | . 183 385 . . 111 405 202 423 . 614 . 156 39 47 424 . 320 326 Integrity Restored 7295 | . 398 1007 . 15 1121 1271 190 303 . 869 . 544 405 . 294 . 455 423 Core 5467 | . 332 743 . 15 820 993 144 183 . 638 . 433 300 . 232 . 353 281 Parts 1828 | . 66 264 . . 301 278 46 120 . 231 . 111 105 . 62 . 102 142 Protomatter Decayed 1531 | . 11 51 . 54 30 137 22 313 . 369 . 54 . . 192 . 129 169 Game ------ Seed AmuletMicroBroadsword Manual? 0 Play Time 05:21:42 Cumulative 182.5 hours Start 2026.04.06 @ 21:54:14 End 2026.04.17 @ 11:53:52 Sessions 5 Manual Loads 0 Difficulty Adventurer Special Mode Winter2019/RPGLIKE Game No. 33 Rogue 0 Adventurer 33 Explorer 0 Win Type - Total 5 Types 3/0/0/2/0/0/0/0/0/0 Lore% 55 Gallery% 48 Achievement% 22 Wizard Run 0 Options --------- Layout 0 ASCII 0 Keyboard 0 Movement Numpad Keybinds 0 Fullscreen 1 Font 18/SmallcapsGlow Map View 76x50 Zoom Use 0% Tactical HUD 1 Map Filters NONE Filters NONE Steam 1 RUN: 9ea2ebde-9475-4bc0-9e44-d84bdbadc1c0